fUSD/lending_fUSD_20240114
["ID","MTS","AMOUNT","RATE_DAILY","PERIOD"]
[311539499,1705204239838,-225.12,0.00022947,2]
[311539500,1705204239847,-483.87248094,0.00022998,3]
[311539501,1705204239856,-155.0,0.00022998,2]
[311539502,1705204239866,-12289.26387543,0.00022998,2]
[311539503,1705204239875,-2508.9708821,0.00022998,2]
[311539504,1705204239884,-857.33669562,0.00022999,2]
[311539505,1705204239894,-505265.21634996,0.00022999,2]
[311539506,1705204239906,-1449.2787053,0.00022999,2]
[311539507,1705204239915,-705.0,0.00022999,2]
[311539509,1705204239924,-617776.5432475,0.00022999,2]
[311539510,1705204239934,-1965277.69351898,0.00023,2]
[311539511,1705204239944,-940.21,0.00023,2]
[311539512,1705204239956,-640.04,0.00023,2]
[311539513,1705204239965,-150.724935,0.00023,2]
[311539514,1705204239975,-504.937664,0.00023,2]
[311539515,1705204239985,-179.02,0.00023,2]
[311539516,1705204239995,-2168.0914304,0.00023031,2]
[311539517,1705204240004,-5087.1167262,0.00023047,2]
[311539518,1705204240013,-65242.4167828,0.00023047,2]
[311539519,1705204240025,-871.79747949,0.00023047,2]
[311539520,1705204240035,-1184.54124222,0.00023057,2]
[311539521,1705204240044,-225.12,0.00023062,2]
[311539522,1705204240054,-195.0,0.00023064,2]
[311539523,1705204240064,-151.13,0.00023066,2]
[311539524,1705204240075,-150.0,0.00023066,2]
[311539525,1705204240085,-151.69,0.00023066,2]
[311539526,1705204240096,-635.3,0.00023066,2]
[311539527,1705204240105,-150.0,0.00023066,2]
[311539528,1705204240117,-150.0,0.00023066,2]
[311539529,1705204240127,-150.0,0.00023066,2]
[311539530,1705204240136,-417.95,0.00023066,2]
[311539531,1705204240146,-150.0,0.00023066,2]
[311539532,1705204240155,-184.0,0.00023078,2]
[311539533,1705204240165,-225.12,0.00023178,2]
[311539534,1705204240175,-151.33,0.0002321,2]
[311539535,1705204240185,-225.12,0.00023293,2]
[311539536,1705204240195,-225.12,0.00023408,2]
[311539537,1705204240205,-151.33,0.00023429,2]
[311539538,1705204240214,-194.0,0.00023486,2]
[311539539,1705204240224,-200.0,0.00023486,2]
[311539540,1705204240233,-177.0,0.00023486,2]
[311539541,1705204240243,-225.12,0.00023524,2]
[311539542,1705204240253,-3430.0,0.000236,2]
[311539543,1705204240262,-225.12,0.00023639,2]
[311539544,1705204240271,-151.33,0.00023648,2]
[311539545,1705204240281,-36636.0,0.000237,2]
[311539546,1705204240291,-835.0,0.00023701,2]
[311539547,1705204240301,-1234.0,0.00023701,2]
[311539548,1705204240311,-1252.0,0.00023701,2]
[311539549,1705204240321,-1943.187,0.00023701,2]
[311539550,1705204240330,-298.959,0.00023701,2]
[311539551,1705204240340,-19688.0,0.00023701,2]
[311539552,1705204240350,-1399.523,0.00023701,2]
[311539553,1705204240359,-150.033,0.00023701,2]
[311539554,1705204240368,-225.12,0.00023754,2]
[311539555,1705204240378,-229.59,0.00023792,2]
[311539556,1705204240389,-151.33,0.00023867,2]
[311539557,1705204240399,-225.12,0.0002387,2]
[311539558,1705204240409,-417.95,0.00023888,2]
[311539559,1705204240420,-150.0,0.00023888,2]
[311539560,1705204240430,-150.0,0.00023888,2]
[311539561,1705204240439,-300.0,0.00023888,2]
[311539562,1705204240449,-150.0,0.00023888,2]
[311539563,1705204240458,-417.95,0.00023888,2]
[311539564,1705204240468,-150.0,0.00023888,2]
[311539565,1705204240480,-150.0,0.00023888,2]
[311539566,1705204240489,-280.16,0.00023888,2]
[311539567,1705204240499,-150.0,0.00023888,2]
[311539568,1705204240510,-408.12,0.00023888,2]
[311539569,1705204240520,-150.0,0.00023888,2]
[311539570,1705204240529,-150.0,0.00023888,2]
[311539571,1705204240538,-408.12,0.00023888,2]
[311539572,1705204240548,-408.12,0.00023888,2]
[311539573,1705204240557,-408.12,0.00023888,2]
[311539574,1705204240567,-150.0,0.00023888,2]
[311539575,1705204240576,-405.4,0.00023888,2]
[311539576,1705204240585,-150.0,0.00023888,2]
[311539577,1705204240594,-150.0,0.00023888,2]
[311539578,1705204240604,-301.25,0.00023888,2]
[311539579,1705204240881,-314.25,0.00023888,2]
[311539580,1705204240890,-490.27,0.00023888,2]
[311539581,1705204240900,-225.12,0.00023985,2]
[311539582,1705204240909,-431.11450683,0.00024,2]
[311539583,1705204240918,-200.94414737,0.00024,2]
[311539584,1705204240927,-155.0,0.00024,2]
[311539585,1705204240936,-151.33,0.00024086,2]
[311539586,1705204240945,-225.12,0.000241,2]
[311539587,1705204240954,-167.0,0.00024297,2]
[311539588,1705204240963,-167.0,0.00024297,2]
[311539589,1705204240973,-255.45,0.00024438,2]
[311539590,1705204240982,-197.57,0.00024547,2]
[311539591,1705204240991,-349.90017502,0.00024599,2]
[311539592,1705204240999,-50000.0,0.000246,2]
[311539593,1705204241008,-50000.0,0.00024638,2]
[311539594,1705204241018,-640.0,0.00024656,2]
[311539595,1705204241027,-250.0,0.00024658,2]
[311539596,1705204241036,-302.92,0.000247,2]
[311539597,1705204241049,-177.74,0.000247,2]
[311539598,1705204241059,-332.6,0.000247,2]
[311539599,1705204241069,-301.47,0.000247,2]
[311539600,1705204241078,-150.0,0.000247,2]
[311539601,1705204241088,-150.0,0.000247,2]
[311539602,1705204241098,-150.0,0.000247,2]
[311539603,1705204241110,-150.0,0.000247,2]
[311539604,1705204241120,-150.0,0.000247,2]
[311539605,1705204241130,-150.0,0.000247,2]
[311539606,1705204241140,-150.0,0.000247,2]
[311539607,1705204241149,-150.0,0.000247,2]
[311539608,1705204241158,-150.0,0.000247,2]
[311539609,1705204241168,-150.0,0.000247,2]
[311539610,1705204241178,-294.03,0.000247,2]
[311539611,1705204241188,-150.0,0.000247,2]
[311539612,1705204241197,-815.76,0.000247,2]
[311539613,1705204241207,-835.42,0.000247,2]
[311539614,1705204241218,-150.0,0.000247,2]
[311539615,1705204241227,-150.0,0.000247,2]
[311539616,1705204241236,-294.03,0.000247,2]
[311539617,1705204241245,-417.71,0.000247,2]
[311539618,1705204241255,-294.03,0.000247,2]
[311539619,1705204241264,-150.0,0.000247,2]
[311539620,1705204241273,-177.65,0.000247,2]
[311539621,1705204241283,-150.0,0.000247,2]
[311539622,1705204241293,-150.0,0.000247,2]
[311539623,1705204241303,-408.12,0.000247,2]
[311539624,1705204241313,-150.0,0.000247,2]
[311539625,1705204241323,-408.12,0.000247,2]
[311539626,1705204241334,-150.0,0.000247,2]
[311539627,1705204241343,-294.03,0.000247,2]
[311539628,1705204241352,-153.41,0.000247,2]
[311539629,1705204241362,-152.49,0.000247,2]
[311539630,1705204241371,-294.03,0.000247,2]
[311539631,1705204241381,-636.28,0.000247,2]
[311539632,1705204241392,-418.26,0.000247,2]
[311539633,1705204241402,-150.0,0.000247,2]
[311539634,1705204241411,-408.12,0.000247,2]
[311539635,1705204241422,-150.0,0.000247,2]
[311539636,1705204241431,-314.25,0.000247,2]
[311539637,1705204241441,-300.91,0.000247,2]
[311539638,1705204241451,-150.0,0.000247,2]
[311539639,1705204241462,-408.12,0.000247,2]
[311539640,1705204241471,-150.0,0.000247,2]
[311539641,1705204241480,-314.25,0.000247,2]
[311539642,1705204241490,-408.12,0.000247,2]
[311539643,1705204241500,-294.03,0.000247,2]
[311539644,1705204241509,-294.03,0.000247,2]
[311539645,1705204241519,-408.12,0.000247,2]
[311539646,1705204241529,-314.25,0.000247,2]
[311539647,1705204241538,-150.0,0.000247,2]
[311539648,1705204241547,-294.03,0.000247,2]
[311539649,1705204241557,-408.12,0.000247,2]
[311539650,1705204241567,-294.03,0.000247,2]
[311539651,1705204241576,-150.0,0.000247,2]
[311539652,1705204241585,-229.59,0.0002477,2]
[311539653,1705204241595,-254.79499104,0.00025,2]
[311539654,1705204241604,-1582.64010755,0.00025,2]
[311539655,1705204241613,-693.1186857,0.00025,2]
[311539656,1705204241622,-167.20178626,0.00025,2]
[311539657,1705204241630,-1069.76501515,0.00025,2]
[311539658,1705204241639,-250.87659315,0.00025,2]
[311539659,1705204241649,-303.15894596,0.00025,2]
[311539660,1705204241659,-387.44495424,0.00025,2]
[311539661,1705204241668,-1247.79685735,0.00025,2]
[311539662,1705204241678,-430.0,0.00025,2]
[311539663,1705204241687,-160.0,0.00025,2]
[311539664,1705204241696,-710.30311205,0.00025,2]
[311539665,1705204241706,-2804.01741076,0.00025,2]
[311539666,1705204241715,-300.0,0.00025,2]
[311539668,1705204241724,-299.389427,0.00025,2]
[311539670,1705204241735,-1280.2356884,0.00025,2]
[311539672,1705204241744,-210.0,0.00025049,2]
[311539674,1705204241754,-1797.36684811,0.000251,2]
[311539676,1705204241763,-207.0,0.00025284,2]
[311539678,1705204241774,-273.8303687,0.0002549,2]
[311539680,1705204241783,-314.25,0.00025522,2]
[311539682,1705204241792,-586.37,0.00025522,2]
[311539684,1705204241801,-314.25,0.00025522,2]
[311539686,1705204241811,-408.12,0.00025522,2]
[311539688,1705204241821,-309.47,0.00025522,2]
[311539690,1705204241830,-294.03,0.00025522,2]
[311539692,1705204241841,-314.25,0.00025522,2]
[311539694,1705204241851,-408.12,0.00025522,2]
[311539696,1705204241861,-294.03,0.00025522,2]
[311539698,1705204241871,-397.23,0.00025522,2]
[311539700,1705204241880,-314.25,0.00025522,2]
[311539702,1705204241889,-294.03,0.00025522,2]
[311539704,1705204241897,-294.03,0.00025522,2]
[311539706,1705204241906,-294.03,0.00025522,2]
[311539708,1705204241916,-314.25,0.00025522,2]
[311539710,1705204241925,-314.25,0.00025522,2]
[311539712,1705204241935,-314.25,0.00025522,2]
[311539714,1705204241946,-312.27,0.00025522,2]
[311539716,1705204241955,-360.0,0.0002556,2]
[311539718,1705204241964,-218.65450115,0.000256,4]
[311539720,1705204241974,-167.0,0.00025633,2]
[311539722,1705204241983,-229.59,0.00025749,2]
[311539724,1705204241992,-500.0,0.00025863,2]
[311539726,1705204242001,-3398.90812809,0.00026,2]
[311539729,1705204242010,-200.91298037,0.00026,2]
[311539730,1705204242019,-300.0,0.00026,2]
[311539732,1705204242028,-1945.78796608,0.00026,5]
[311539734,1705204242037,-1280.2356884,0.00026,2]
[311539736,1705204242046,-150.0,0.00026079,2]
[311539738,1705204242055,-349.90017502,0.00026299,3]
[311539741,1705204242066,-266.301935,0.000264,2]
[311539742,1705204242075,-1417.84,0.00026575,2]
[311539745,1705204242085,-16813.57,0.00026575,2]
[311539747,1705204242097,-540.218,0.00026701,2]
[311539749,1705204242106,-1234.0,0.00026701,2]
[311539750,1705204242115,-1252.0,0.00026701,2]
[311539752,1705204242124,-1932.0,0.00026701,2]
[311539755,1705204242133,-19688.0,0.00026701,2]
[311539757,1705204242142,-255.45,0.00026702,2]
[311539759,1705204242151,-229.59,0.00026727,2]
[311539761,1705204242161,-4247.81248042,0.000269,2]
[311539763,1705204242170,-167.0,0.0002697,2]
[311539765,1705204242179,-155.0,0.00027,2]
[311539767,1705204242188,-223.17193358,0.00027,2]
[311539769,1705204242197,-3000.0,0.00027,2]
[311539771,1705204242205,-300.0,0.00027,2]
[311539773,1705204242214,-230.48830562,0.00027,2]
[311539774,1705204242223,-230.48830562,0.00027,2]
[311539777,1705204242233,-230.48830562,0.00027,2]
[311539779,1705204242242,-230.48830562,0.00027,2]
[311539781,1705204242251,-230.48830562,0.00027,2]
[311539783,1705204242261,-230.48830562,0.00027,2]
[311539785,1705204242270,-230.48830562,0.00027,2]
[311539786,1705204242279,-230.48830562,0.00027,2]
[311539788,1705204242288,-230.48830562,0.00027,2]
[311539790,1705204242297,-230.48830562,0.00027,2]
[311539792,1705204242306,-230.48830562,0.00027,2]
[311539794,1705204242316,-230.48830562,0.00027,2]
[311539796,1705204242325,-230.48830562,0.00027,2]
[311539798,1705204242335,-230.48830562,0.00027,2]
[311539801,1705204242344,-230.48830562,0.00027,2]
[311539803,1705204242353,-230.48830562,0.00027,2]
[311539805,1705204242362,-230.48830562,0.00027,2]
[311539806,1705204242372,-230.48830562,0.00027,2]
[311539808,1705204242381,-230.48830562,0.00027,2]
[311539811,1705204242390,-230.48830562,0.00027,2]
[311539813,1705204242399,-230.48830562,0.00027,2]
[311539815,1705204242408,-230.48830562,0.00027,2]
[311539817,1705204242420,-230.48830562,0.00027,2]
[311539818,1705204242429,-230.48830562,0.00027,2]
[311539820,1705204242438,-230.48830562,0.00027,2]
[311539822,1705204242448,-230.48830562,0.00027,2]
[311539825,1705204242457,-230.48830562,0.00027,2]
[311539827,1705204242468,-230.48830562,0.00027,2]
[311539829,1705204242477,-230.48830562,0.00027,2]
[311539831,1705204242486,-230.48830562,0.00027,2]
[311539833,1705204242495,-230.48830562,0.00027,2]
[311539835,1705204242504,-230.48830562,0.00027,2]
[311539837,1705204242514,-230.48830562,0.00027,2]
[311539838,1705204242523,-230.48830562,0.00027,2]
[311539841,1705204242532,-230.48830562,0.00027,2]
[311539843,1705204242542,-230.48830562,0.00027,2]
[311539845,1705204242551,-230.48830562,0.00027,2]
[311539847,1705204242561,-230.48830562,0.00027,2]
[311539849,1705204242570,-230.48830562,0.00027,2]
[311539851,1705204242580,-230.48830562,0.00027,2]
[311539853,1705204242589,-230.48830562,0.00027,2]
[311539855,1705204242598,-230.48830562,0.00027,2]
[311539857,1705204242607,-230.48830562,0.00027,2]
[311539859,1705204242616,-230.48830562,0.00027,2]
[311539860,1705204242626,-230.48830562,0.00027,2]
[311539862,1705204242635,-230.48830562,0.00027,2]
[311539864,1705204242644,-230.48830562,0.00027,2]
[311539866,1705204242653,-230.48830562,0.00027,2]
[311539868,1705204242662,-230.48830562,0.00027,2]
[311539870,1705204242671,-230.48830562,0.00027,2]
[311539871,1705204242680,-1280.2356884,0.00027,2]
[311539872,1705204242690,-209.0,0.0002721,2]
[311539873,1705204242699,-500.0,0.0002726,2]
[311539874,1705204242708,-500.0,0.0002726,2]
[311539875,1705204242717,-500.0,0.0002726,2]
[311539876,1705204242727,-156.80288878,0.000273,2]
[311539877,1705204242736,-156.80288872,0.000273,2]
[311539878,1705204242745,-156.80288872,0.000273,2]
[311539879,1705204242755,-156.80288872,0.000273,2]
[311539880,1705204242764,-640.0,0.00027396,2]
[311539881,1705204242774,-155.0,0.00027397,2]
[311539882,1705204242784,-223.65766151,0.00027397,2]
[311539883,1705204242794,-3878.0,0.00027397,2]
[311539884,1705204242803,-5165.0,0.00027397,2]
[311539885,1705204242812,-559.56,0.00027397,2]
[311539886,1705204242822,-250.0,0.00027397,2]
[311539887,1705204242831,-5689.32768707,0.000274,2]
[311539888,1705204242841,-250.0,0.000274,2]
[311539889,1705204242851,-172.95116857,0.000274,2]
[311539890,1705204242861,-250.0,0.000274,2]
[311539891,1705204242871,-250.0,0.000274,2]
[311539892,1705204242880,-500.0,0.00027443,7]
[311539893,1705204242889,-185.47415034,0.000275,2]
[311539894,1705204242898,-7972.41923056,0.000275,2]
[311539895,1705204242908,-559.56,0.00027556,2]
[311539896,1705204242918,-229.59,0.00027706,2]
[311539897,1705204242927,-559.56,0.00027714,2]
[311539898,1705204242936,-500.0,0.00027808,2]
[311539900,1705204242945,-500.0,0.00027808,2]
[311539901,1705204242954,-559.56,0.00027872,2]
[311539902,1705204242963,-500.0,0.00027927,2]
[311539903,1705204242973,-500.0,0.00027936,2]
[311539905,1705204242983,-500.0,0.00027945,2]
[311539906,1705204242992,-151.56257171,0.00027999,2]
[311539908,1705204243001,-349.90017502,0.00027999,3]
[311539910,1705204243010,-688.02629954,0.00028,2]
[311539911,1705204243019,-202.83544336,0.00028,2]
[311539912,1705204243029,-6148.22144652,0.00028,2]
[311539913,1705204243038,-217.26251436,0.00028,2]
[311539914,1705204243048,-300.0,0.00028,2]
[311539915,1705204243058,-1280.2356884,0.00028,2]
[311539916,1705204243067,-559.56,0.0002803,2]
[311539917,1705204243076,-559.56,0.00028189,2]
[311539918,1705204243086,-209.0,0.000282,2]
[311539919,1705204243095,-167.0,0.00028307,2]
[311539920,1705204243104,-167.0,0.00028307,2]
[311539921,1705204243114,-559.56,0.00028347,2]
[311539922,1705204243123,-500.0,0.00028356,2]
[311539923,1705204243133,-360.0,0.000284,2]
[311539924,1705204243142,-182.0,0.00028474,2]
[311539925,1705204243151,-1312.0,0.000285,2]
[311539926,1705204243161,-559.56,0.00028505,2]
[311539927,1705204243170,-559.56,0.00028664,2]
[311539928,1705204243180,-229.59,0.00028684,2]
[311539929,1705204243189,-155.0,0.00028767,2]
[311539930,1705204243198,-152.0,0.00028818,3]
[311539931,1705204243207,-559.56,0.00028822,2]
[311539932,1705204243217,-500.0,0.00028904,2]
[311539933,1705204243227,-500.0,0.00028904,2]
[311539934,1705204243236,-255.45,0.00028966,2]
[311539935,1705204243245,-235.16,0.00028999,2]
[311539936,1705204243255,-235.16,0.00028999,2]
[311539937,1705204243265,-235.16,0.00028999,2]
[311539938,1705204243275,-235.16,0.00028999,2]
[311539939,1705204243285,-235.16,0.00028999,2]
[311539940,1705204243294,-235.16,0.00028999,2]
[311539941,1705204243303,-235.16,0.00028999,2]
[311539942,1705204243314,-235.16,0.00028999,2]
[311539943,1705204243325,-235.16,0.00028999,2]
[311539944,1705204243335,-150.0,0.00028999,2]
[311539945,1705204243345,-89391.83720179,0.00029,2]
[311539946,1705204243355,-36130.42956424,0.00029,15]
[311539947,1705204243364,-150.77704,0.00029,2]
[311539948,1705204243373,-160.22080585,0.00029,2]
[311539949,1705204243384,-642.925313,0.00029,30]
[311539950,1705204243394,-7000.0,0.00029,2]
[311539951,1705204243403,-502.3770141,0.00029,2]
[311539952,1705204243413,-332.914549,0.00029,2]
[311539953,1705204243426,-300.0,0.00029,2]
[311539954,1705204243435,-1280.2356884,0.00029,2]
[311539955,1705204243444,-197.57,0.00029016,2]
[311539956,1705204243453,-500.0,0.00029023,7]
[311539957,1705204243465,-209.0,0.0002919,2]
[311539958,1705204243474,-209.0,0.0002919,2]
[311539959,1705204243483,-322.54675053,0.0002945,2]
[311539960,1705204243493,-500.0,0.00029452,2]
[311539961,1705204243503,-187.73506939,0.000295,3]
[311539962,1705204243513,-229.59,0.00029663,2]
[311539963,1705204243523,-349.90017502,0.000297,4]
[311539964,1705204243532,-22335.75274887,0.000297,2]
[311539966,1705204243541,-1234.0,0.00029701,2]
[311539968,1705204243550,-1252.0,0.00029701,2]
[311539969,1705204243561,-10159.064,0.00029701,2]
[311539970,1705204243570,-175.32047182,0.000298,2]
[311539971,1705204243580,-1000.0,0.000298,3]
[311539972,1705204243590,-150.51,0.00029823,2]
[311539973,1705204243600,-152.0,0.00029883,4]
[311539974,1705204243610,-250.0,0.00029899,2]
[311539975,1705204243619,-20000.0,0.00029899,2]
[311539976,1705204243628,-151.88,0.00029916,2]
[311539977,1705204243638,-403.61082531,0.0002997,2]
[311539978,1705204243647,-4374.2858169,0.00029979,2]
[311539979,1705204243657,-56113.5688688,0.00029979,2]
[311539980,1705204243666,-1866.7145556,0.00029979,2]
[311539981,1705204243675,-1038.67,0.0002999,7]
[311539982,1705204243685,-235.16,0.00029997,2]
[311539983,1705204243694,-5098.34344872,0.00029997,2]
[311539984,1705204243968,-291.19064895,0.00029997,2]
[311539985,1705204243977,-150.0,0.00029999,2]
[311539986,1705204243986,-4853.11476251,0.0003,4]
[311539987,1705204243996,-529.85357123,0.0003,4]
[311539988,1705204244011,-643.1294748,0.0003,4]
[311539989,1705204244022,-5065.54090641,0.0003,4]
[311539990,1705204244033,-529.05901152,0.0003,4]
[311539991,1705204244057,-2061.57685455,0.0003,4]
[311539992,1705204244068,-813.21033884,0.0003,4]
[311539993,1705204244078,-2549.98715427,0.0003,4]
[311539994,1705204244087,-307.64454505,0.0003,7]
[311539995,1705204244097,-5079.84679404,0.0003,4]
[311539996,1705204244113,-25339.09396493,0.0003,4]
[311539997,1705204244312,-1675.47503332,0.00024,2]
[311539998,1705204244392,-2324.52496668,0.00024,2]
[311539999,1705204244401,-156.80288872,0.000273,2]
[311540000,1705204244411,-1537.76342422,0.0003,4]
[311540001,1705204244680,-272.65594049,0.0003,4]
[311540002,1705204244691,-299.1128838,0.0003,4]
[311540003,1705204244823,-733.7127249,0.00022999,2]
[311540004,1705204244890,-232.47307864,0.00022999,2]
[311540005,1705204244899,-2560.23534981,0.0003,4]
[311540119,1705204262552,382.92368971,0.0002209,3]
[311540121,1705204476112,229.91,0.00021513,2]
[311540125,1705204861504,367.29038341,0.0002209,3]
[311540126,1705204907539,218.41,0.00020479,2]
[311540127,1705204952076,518.36451917,0.0002209,3]
[311540128,1705205017124,1000.0,0.0002209,3]
[311540129,1705205041504,540.04163557,0.0002209,3]
[311540130,1705205140552,150.0,0.000221,2]
[311540131,1705205191968,177.21166732,0.0002209,3]
[311540132,1705205281520,235.02197224,0.0002209,3]
[311540136,1705205432302,-1000.0,0.00022299,2]
[311540138,1705205432311,-200.0,0.000223,8]
[311540139,1705205432320,-1000.0,0.00022392,2]
[311540140,1705205432330,-500.0,0.000224,8]
[311540141,1705205432338,-229.9,0.00022495,2]
[311540142,1705205432348,-800.0,0.000225,8]
[311540143,1705205432357,-150.0,0.00022599,2]
[311540144,1705205432366,-150.0,0.000226,2]
[311540145,1705205432375,-314.34,0.000226,2]
[311540146,1705205432384,-294.11,0.000226,2]
[311540147,1705205432393,-150.0,0.000226,2]
[311540148,1705205432403,-418.07,0.000226,2]
[311540149,1705205432412,-408.24,0.000226,2]
[311540150,1705205432421,-150.0,0.000226,2]
[311540151,1705205432430,-418.07,0.000226,2]
[311540152,1705205432440,-150.0,0.000226,2]
[311540153,1705205432449,-294.11,0.000226,2]
[311540154,1705205432458,-314.34,0.000226,2]
[311540155,1705205432467,-150.0,0.000226,2]
[311540156,1705205432477,-150.0,0.000226,2]
[311540157,1705205432511,-327.65,0.000226,2]
[311540158,1705205432522,-408.24,0.000226,2]
[311540159,1705205432532,-418.07,0.000226,2]
[311540160,1705205432542,-150.0,0.000226,2]
[311540161,1705205432553,-150.0,0.000226,2]
[311540162,1705205432563,-314.34,0.000226,2]
[311540163,1705205432573,-294.11,0.000226,2]
[311540164,1705205432584,-408.24,0.000226,2]
[311540165,1705205432594,-408.24,0.000226,2]
[311540166,1705205432604,-150.0,0.000226,2]
[311540167,1705205432615,-150.0,0.000226,2]
[311540168,1705205432625,-418.07,0.000226,2]
[311540169,1705205432635,-150.0,0.000226,2]
[311540170,1705205432646,-150.0,0.000226,2]
[311540171,1705205432655,-294.11,0.000226,2]
[311540172,1705205432668,-314.34,0.000226,2]
[311540173,1705205432679,-1100.0,0.000226,8]
[311540174,1705205432690,-221.85307981,0.00022691,2]
[311540175,1705205432700,-327.24540231,0.000227,2]
[311540176,1705205432714,-90.82459769,0.000227,2]
[311540177,1705205432725,-408.24,0.000227,2]
[311540178,1705205432735,-150.0,0.000227,2]
[311540179,1705205432745,-152.94,0.000227,2]
[311540180,1705205432756,-302.92,0.000227,2]
[311540181,1705205432766,-150.0,0.000227,2]
[311540182,1705205432777,-294.11,0.000227,2]
[311540183,1705205432787,-640.04,0.000227,2]
[311540186,1705205432797,-150.0,0.000227,2]
[311540189,1705205432807,-314.34,0.000227,2]
[311540192,1705205432816,-940.21,0.000227,2]
[311540195,1705205432825,-1400.0,0.000227,8]
[311540198,1705205432834,-218.41,0.00022743,2]
[311540201,1705205432844,-3303.60418818,0.00022777,2]
[311540203,1705205432854,-737.02961413,0.00022792,2]
[311540206,1705205432880,-421.07761078,0.00022792,2]
[311540207,1705205432893,-449.61697342,0.00022792,2]
[311540208,1705205432905,-987.38231631,0.00022792,2]
[311540210,1705205432917,-13346.13247094,0.00022792,2]
[311540212,1705205432931,-5123.51393727,0.00022792,2]
[311540215,1705205432947,-3696.08,0.00022792,2]
[311540216,1705205432960,-1399.78553708,0.00022792,2]
[311540217,1705205433000,-735.1422141,0.00022792,2]
[311540224,1705205438351,-1.40829716,0.00022792,2]
[311540226,1705205438360,-155.0,0.00022792,2]
[311540227,1705205438369,-4175.4209924,0.00022793,2]
[311540234,1705205438648,-961.40654544,0.00022793,2]
[311540235,1705205438659,-951.26132272,0.00022793,2]
[311540236,1705205438671,-455.23866117,0.00022793,2]
[311540237,1705205438683,-343.81017987,0.00022793,2]
[311540238,1705205438694,-523.73272136,0.00022793,2]
[311540239,1705205438710,-4878.39345247,0.00022793,2]
[311540240,1705205438719,-27005.5975,0.00022794,2]
[311540241,1705205438728,-18556.5837,0.00022794,2]
[311540242,1705205438737,-200.0,0.000228,8]
[311540243,1705205438747,-19230.8846,0.00022899,2]
[311540244,1705205438756,-1000.0,0.00022899,2]
[311540245,1705205438766,-2500.0,0.00022899,2]
[311540246,1705205438775,-846.23691581,0.000229,2]
[311540247,1705205438784,-221.8530798,0.000229,2]
[311540248,1705205438794,-311.59728479,0.000229,2]
[311540249,1705205438805,-200.0,0.000229,8]
[311540250,1705205438816,-155.3617784,0.00022997,2]
[311540251,1705205438825,-4903.47311796,0.00022998,2]
[311540252,1705205438834,-9677.93386237,0.00022998,2]
[311540253,1705205438844,-499.99,0.00022998,2]
[311540254,1705205438854,-433.37186773,0.00022998,3]
[311540255,1705205438864,-194.43403089,0.00022999,3]
[311540256,1705205438874,-857.33669562,0.00022999,2]
[311540257,1705205438883,-429429.76436378,0.00022999,2]
[311540258,1705205438893,-1000.0,0.00022999,2]
[311540259,1705205438903,-150.0,0.00022999,2]
[311540260,1705205438912,-150.0,0.00022999,2]